Workbook

Sheet CashFlow
B1: 148 Benham Rd - Groton
B2: 24 unit Rooming House
B4: Monthly Operating Income | C4: As Is With Vacancy Filled | D4: Year 1 Pro Forma (Rent Super) | E4: Year 2 Pro Forma | F4: Year 3 Pro Forma
B5: Number of Units | C5: 24 | D5: 24 | E5: 24 | F5: 24
B6: Average Monthly Rent per Unit | C6: 881.58 | D6: 922.91 | E6: 977 | F6: 1025
B7: Total Rental Income | C7: =C5*C6 -> 21157.92 | D7: =(900*23)+1450 -> 22150 | E7: =E5*E6 -> 23448 | F7: 24600
B8: % Vacancy and Credit Losses | C8: 0.05 | D8: 0.05 | E8: 0.05 | F8: 0.05
B9: Total Vacancy Loss | C9: =C8*C7 -> 1057.896 | D9: 1107.5 | E9: 1172.4 | F9: 1230
B10: Other Monthly Income (laundry, vending, parking, etc.)
B11: Gross Monthly Operating Income | C11: =C7-C9+C10 -> 20100.024 | D11: 21042.5 | E11: 22275.6 | F11: 23370
B13: Monthly Operating Expenses
B14: Property Management Fees ( 10%) | C14: 2000 | D14: =$D11*0.05 -> 1052.125 | E14: 1052.125 | F14: 1052.125 | G14: Goes towards Super cost (who has free rent)
B15: Repairs and Maintenance | C15: 1080 | D15: =$D11*0.05 -> 1052.125 | E15: 1052.125 | F15: 1052.125 | G15: Rent Super & On include renting unit and 5% management
B16: Real Estate Taxes | C16: 1750 | D16: 1750 | E16: 1750 | F16: 1750
B17: Rental Property Insurance | C17: 1000 | D17: 1000 | E17: 1000 | F17: 1000
B18: Electric | C18: 729.16 | D18: 729.16 | E18: 729.16 | F18: 729.16
B19: Water + Sewer | C19: 458.33 | D19: 458.33 | E19: 458.33 | F19: 458.33
B20: Oil | C20: 750 | D20: 750 | E20: 750 | F20: 750
B21: - Water and Sewer
B22: - Gas and Electricity
B23: - Garbage
B24: - Cable, Phone, Internet
B25: Cleaning | D25: 500 | E25: 500 | F25: 500
B26: Internet | C26: 400 | D26: 400 | E26: 400 | F26: 400
B27: Advertising
B28: Monthly Operating Expenses | C28: =SUM(C14:C27) -> 8167.49 | D28: 7691.74 | E28: 7691.74 | F28: 7691.74
B30: Net Operating Income (NOI)
B31: Total Annual Operating Income | C31: =C11*12 -> 241200.288 | D31: =D11*12 -> 252510 | E31: 267307.2 | F31: 280440
B32: Total Annual Operating Expense | C32: =C28*12 -> 98009.88 | D32: =D28*12 -> 92300.88 | E32: 92300.88 | F32: 92300.88
B33: Annual Net Operating Income | C33: =C31-C32 -> 143190.408 | D33: 160209.12 | E33: 175006.32 | F33: 188139.12
B35: Capitalization Rate and Valuation
B36: Desired Capitalization Rate | C36: 0.075 | D36: 0.075 | E36: 0.075 | F36: 0.075
B37: Property Valuation (Offer Price) | C37: =IF(C36=0," - ",C33/C36) -> 1909205.44 | D37: =IF(D36=0," - ",D33/D36) -> 2136121.6 | E37: 2333417.6 | F37: 2508521.6
B38: Actual Purchase Price | C38: 1649000 | D38: 1649000 | E38: 1649000 | F38: 1649000
B39: Actual Capitalization Rate | C39: =IF(C38=0," - ",C33/C38) -> 0.08683469254 | D39: =IF(D38=0," - ",D33/D38) -> 0.09715531837 | E39: 0.1061287568 | F39: 0.1140928563
B41: Loan Information
B42: Down Payment | C42: 370000 | D42: 370000 | E42: 370000 | F42: 370000
B43: Loan Amount | C43: =C38-C42 -> 1279000 | D43: 1279000 | E43: 1279000 | F43: 1279000
B44: Acquisition Costs and Loan Fees | C44: =C38*0.0075 -> 12367.5 | D44: 12367.5 | E44: 12367.5 | F44: 12367.5
B45: Length of Mortgage (years) | C45: 30 | D45: 30 | E45: 30 | F45: 30
B46: Annual Interest Rate | C46: 0.0625 | D46: 0.0625 | E46: 0.0625 | F46: 0.0625
B47: Initial Investment | C47: =C42+C44 -> 382367.5 | D47: 382367.5 | E47: 382367.5 | F47: 382367.5
B48: Monthly Mortgage Payment (PI) | C48: =IF(C43=0,0,-PMT(C46/12,C45*12,C43)) -> 7875.022993 | D48: =IF(D43=0,0,-PMT(D46/12,D45*12,D43)) -> 7875.022993 | E48: 7875.022993 | F48: 7875.022993
B49: Annual Interest | C49: =IF(C43=0,0,-CUMIPMT(C46/12,C45*12,C43,1,12,0)) -> 79513.00915 | D49: =IF(D43=0,0,-CUMIPMT(D46/12,D45*12,D43,1,12,0)) -> 79513.00915 | E49: 79513.00915 | F49: 79513.00915
B50: Annual Principal | C50: =IF(C43=0,0,-CUMPRINC(C46/12,C45*12,C43,1,12,0)) -> 14987.26677 | D50: =IF(D43=0,0,-CUMPRINC(D46/12,D45*12,D43,1,12,0)) -> 14987.26677 | E50: 14987.26677 | F50: 14987.26677
B51: Total Annual Debt Service | C51: =C48*12 -> 94500.27592 | D51: =D48*12 -> 94500.27592 | E51: 94500.27592 | F51: 94500.27592
B53: Cash Flow and ROI
B54: Total Monthly Cash Flow (before taxes) | C54: =C11-C28-C48 -> 4057.511007 | D54: 5475.737007 | E54: 6708.837007 | F54: 7803.237007
B55: Total Annual Cash Flow (before taxes) | C55: =C33-C51 -> 48690.13208 | D55: 65708.84408 | E55: 80506.04408 | F55: 93638.84408
B56: Cash on Cash Return (ROI) | C56: =IF(C47=0," ",C55/C47) -> 0.1273385737 | D56: =IF(D47=0," ",D55/D47) -> 0.1718473565 | E56: 0.2105462522 | F56: 0.2448922675

Sheet ©
B1: Rental Cash Flow Analysis
B3: By Vertex42.com
B4: https://www.vertex42.com/ExcelTemplates/rental-cash-flow-analysis.html
B6: Disclaimer: This spreadsheet should only be used for informational and educational purposes. Please verify calculations and seek professional assistance before making financial decisions.
B8: © 2015-2018 Vertex42 LLC
B10: This spreadsheet, including all worksheets and associated content is a copyrighted work under the United States and other copyright laws.
B12: Do not submit copies or modifications of this template to any website or online template gallery.
B14: Please review the following license agreement to learn how you may or may not use this template. Thank you.
B16: License Agreement
B17: https://www.vertex42.com/licensing/EULA_privateuse.html
B19: Do not delete this worksheet.
